bitfinex-derivatives/quotes_BTCF0:USTF0_20260113
["timestamp","ask_amount","ask_price","bid_price","bid_amount"]
[1768328638009,0.18813305,93734.0,93710.0,0.010676]
[1768328638010,0.19362135,93723.0,93710.0,0.05]
[1768328638208,0.09608,93722.0,93710.0,0.05]
[1768328638724,0.010675,93721.0,93710.0,0.05]
[1768328639226,0.010675,93719.0,93710.0,0.05]
[1768328639927,0.010675,93717.0,93710.0,0.05]
[1768328640125,0.010675,93717.0,93710.0,0.03]
[1768328640827,0.010675,93720.0,93710.0,0.03]
[1768328641423,0.010675,93718.0,93710.0,0.03]
[1768328641830,0.010675,93721.0,93710.0,0.03]
[1768328642129,0.010675,93719.0,93710.0,0.03]
[1768328642330,0.19393845,93722.0,93710.0,0.03]
[1768328642528,0.19362135,93721.0,93700.0,0.09547281]
[1768328642726,0.010675,93717.0,93701.0,0.010677]
[1768328642932,0.010675,93717.0,93701.0,0.060677]
[1768328643130,0.010675,93717.0,93703.0,0.010677]
[1768328643337,0.010676,93715.0,93703.0,0.06]
[1768328643520,0.19362135,93721.0,93703.0,0.06]
[1768328643829,0.19362135,93716.0,93694.0,0.09547281]
[1768328644028,0.010677,93705.0,93694.0,0.14547281]
[1768328644332,0.19362135,93716.0,93694.0,0.14547281]
[1768328644333,0.106796,93708.0,93694.0,0.14547281]
[1768328644627,0.010676,93707.0,93694.0,0.13647281]
[1768328645035,0.010677,93705.0,93694.0,0.13647281]
[1768328645326,0.010676,93707.0,93694.0,0.13647281]
[1768328645534,0.010676,93707.0,93695.0,0.09838736]
[1768328645725,0.010677,93706.0,93695.0,0.15838736]
[1768328646327,0.00016005,93709.0,93699.0,0.09838736]
[1768328646529,0.9152,93715.0,93700.0,0.09838736]
[1768328646837,0.010676,93715.0,93704.0,0.09838736]
[1768328647136,0.38448,93755.0,93704.0,0.09838736]
[1768328647137,0.010669,93776.0,93721.0,0.09838736]
[1768328647429,0.09612,93768.0,93742.0,0.19772973]
[1768328647634,0.09674741,93760.0,93742.0,0.06]
[1768328647824,0.10741841,93751.0,93727.0,0.09934237]
[1768328648029,0.09212838,93741.0,93727.0,0.05]
[1768328648224,0.18887579,93738.0,93727.0,0.05]
[1768328648426,0.09612,93741.0,93727.0,1e-07]
[1768328648623,0.010673,93737.0,93727.0,1e-07]
[1768328649024,0.106793,93741.0,93727.0,1e-07]
[1768328649234,0.10695305,93741.0,93727.0,1e-07]
[1768328649634,0.010673,93739.0,93727.0,1e-07]
[1768328649935,0.10695305,93741.0,93727.0,1e-07]
[1768328651534,0.09674741,93740.0,93727.0,1e-07]
[1768328652337,0.09674741,93739.0,93727.0,0.06]
[1768328652638,0.010673,93737.0,93727.0,0.06]
[1768328652933,0.010673,93734.0,93716.0,0.010675]
[1768328653133,0.010673,93738.0,93720.0,0.010675]
[1768328653333,0.010673,93738.0,93720.0,0.060675]
[1768328654937,0.09674741,93739.0,93723.0,0.010674]
[1768328655130,0.09674741,93739.0,93723.0,0.060674]
[1768328655331,0.09628005,93741.0,93723.0,0.060674]
[1768328655938,0.010673,93739.0,93723.0,0.060674]
[1768328656737,0.09628005,93741.0,93723.0,0.05]
[1768328657036,0.010673,93738.0,93723.0,0.060675]
[1768328658130,0.010673,93736.0,93723.0,0.05]
[1768328658442,0.010673,93738.0,93723.0,0.05]
[1768328660141,0.010673,93738.0,93723.0,0.031]
[1768328660343,0.010673,93738.0,93722.0,0.010675]
[1768328660641,0.010673,93738.0,93722.0,0.05]
[1768328660839,0.010673,93738.0,93722.0,0.060675]
[1768328661042,0.010673,93738.0,93722.0,0.05]
[1768328662239,0.010673,93736.0,93722.0,0.05]
[1768328662844,0.09628005,93741.0,93722.0,0.05]
[1768328663943,0.09628005,93741.0,93722.0,0.070675]
[1768328664341,0.09628005,93741.0,93722.0,0.06]
[1768328664541,0.010674,93725.0,93714.0,0.09934237]
[1768328664743,0.010674,93728.0,93714.0,0.09934237]
[1768328664939,0.010674,93728.0,93714.0,0.19757326]
[1768328665140,0.010674,93728.0,93715.0,0.19657666]
[1768328665336,0.09608,93729.0,93716.0,0.10890589]
[1768328665541,0.09608,93729.0,93718.0,0.010675]
[1768328666334,0.09608,93729.0,93716.0,0.19657666]
[1768328666544,0.106754,93729.0,93717.0,0.09823089]
[1768328666745,0.106754,93729.0,93718.0,0.09823089]
[1768328667945,0.106754,93729.0,93718.0,0.08023089]
[1768328669647,0.010674,93727.0,93717.0,0.09834577]
[1768328669950,0.010674,93727.0,93715.0,0.010675]
[1768328670151,0.09608,93729.0,93717.0,0.010675]
[1768328670448,0.09608,93731.0,93727.0,0.09834577]
[1768328670649,0.09608,93731.0,93720.0,0.09482863]
[1768328670850,0.09482863,93730.0,93712.0,0.05166253]
[1768328671055,0.09482863,93730.0,93714.0,0.05166253]
[1768328671546,0.09608,93731.0,93714.0,0.10166253]
[1768328671754,0.010674,93726.0,93714.0,0.10166253]
[1768328672254,0.010674,93726.0,93714.0,0.11233753]
[1768328672853,0.010674,93729.0,93714.0,0.06233753]
[1768328673354,0.010674,93729.0,93716.0,0.010675]
[1768328673557,0.010674,93729.0,93716.0,0.070675]
[1768328674350,0.010674,93728.0,93716.0,0.06]
[1768328674549,0.010674,93727.0,93716.0,0.06]
[1768328674953,0.010674,93730.0,93716.0,0.070675]
[1768328675254,0.010674,93730.0,93720.0,0.09482863]
[1768328675555,0.010674,93730.0,93720.0,0.032]
[1768328675854,0.010673,93736.0,93723.0,0.06167452]
[1768328676060,0.09608,93735.0,93724.0,0.05101019]
[1768328676354,0.19750659,93732.0,93713.0,0.00533544]
[1768328676654,0.19750659,93732.0,93713.0,0.06533544]
[1768328676655,0.09903784,93731.0,93713.0,0.06533544]
[1768328676855,0.09903784,93731.0,93713.0,0.06702163]
[1768328677056,0.010675,93723.0,93713.0,0.05634563]
[1768328677257,0.010675,93723.0,93713.0,0.00533544]
[1768328677747,0.010674,93726.0,93713.0,0.00533544]
[1768328678147,0.09903784,93731.0,93713.0,0.00533544]
[1768328678354,0.09903784,93720.0,93696.0,0.010678]
[1768328678558,0.010675,93716.0,93702.0,0.010677]
[1768328678755,0.010675,93716.0,93702.0,0.070677]
[1768328679457,0.010675,93716.0,93702.0,0.010677]
[1768328679659,0.00016005,93717.0,93702.0,0.010677]
[1768328680146,0.00016005,93717.0,93700.0,0.05345354]
[1768328680147,0.010676,93715.0,93700.0,0.05345354]
[1768328680944,0.010676,93715.0,93701.0,0.053254]
[1768328681557,0.010676,93715.0,93701.0,0.113254]
[1768328681759,0.010676,93715.0,93701.0,0.053254]
[1768328682060,0.010676,93715.0,93701.0,0.103254]
[1768328682259,0.010676,93715.0,93701.0,0.053254]
[1768328683259,0.010676,93715.0,93690.0,0.010678]
[1768328683260,0.010677,93699.0,93688.0,0.09349813]
[1768328683559,0.09608,93708.0,93689.0,0.05362933]
[1768328683756,0.09608,93708.0,93693.0,0.05362933]
[1768328683954,0.106756,93708.0,93696.0,0.05362933]
[1768328684148,0.106756,93708.0,93692.0,0.06419885]
[1768328684347,0.106756,93708.0,93693.0,0.05352085]
[1768328684958,0.106756,93708.0,93693.0,0.10352085]
[1768328685260,0.106756,93708.0,93693.0,0.05352085]
[1768328685645,0.010677,93706.0,93689.0,0.010678]
[1768328685848,0.010677,93706.0,93691.0,0.010678]
[1768328686659,0.010677,93706.0,93691.0,0.070678]
[1768328686963,0.010677,93702.0,93687.0,0.010679]
[1768328687261,0.10971484,93705.0,93687.0,0.06397268]
[1768328687463,0.010677,93703.0,93687.0,0.06397268]
[1768328688059,0.09903784,93704.0,93687.0,0.05]
[1768328688362,0.010677,93701.0,93686.0,0.010679]
[1768328688568,0.010677,93701.0,93683.0,0.06397722]
[1768328688866,0.010677,93701.0,93685.0,0.010679]
[1768328689061,0.106797,93701.0,93685.0,0.010679]
[1768328689246,0.09612,93701.0,93685.0,0.010679]
[1768328689452,0.19750659,93696.0,93680.0,0.010679]
[1768328689750,0.010678,93692.0,93676.0,0.01081091]
[1768328689955,0.09618337,93693.0,93676.0,0.07081091]
[1768328690156,0.09618337,93693.0,93678.0,0.01068]
[1768328690558,0.10686137,93693.0,93678.0,0.01068]
[1768328691158,0.10686137,93693.0,93673.0,0.09381091]
[1768328691360,0.09846875,93692.0,93677.0,0.01068]
[1768328691666,0.09846875,93690.0,93673.0,0.09381091]
[1768328691865,0.19515784,93689.0,93673.0,0.09381091]
[1768328692050,0.19515784,93689.0,93674.0,0.01068]
[1768328692254,0.00011716,93688.0,93674.0,0.0540574]
[1768328692453,0.09903784,93696.0,93676.0,0.0540574]
[1768328692654,0.106798,93695.0,93676.0,0.0647374]
[1768328693062,0.010678,93695.0,93676.0,0.0647374]
[1768328693254,0.09612,93694.0,93676.0,0.0647374]
[1768328693454,0.010678,93693.0,93676.0,0.0647374]
[1768328693966,0.010678,93696.0,93678.0,0.01068]
[1768328694169,0.09612,93692.0,93678.0,0.01068]
[1768328695055,0.010678,93696.0,93674.0,0.09349813]
[1768328695255,0.09612,93695.0,93675.0,0.09349813]
[1768328695556,0.09612,93695.0,93677.0,0.09349813]
[1768328695557,0.010678,93694.0,93677.0,0.09349813]
[1768328695758,0.010678,93694.0,93673.0,0.09381091]
[1768328696066,0.19515784,93695.0,93673.0,0.15381091]
[1768328696367,0.010678,93692.0,93676.0,0.01068]
[1768328696953,0.19515784,93695.0,93673.0,0.09381091]
[1768328696954,0.09903784,93689.0,93673.0,0.09381091]
[1768328697155,0.010679,93682.0,93673.0,0.09381091]
[1768328697357,0.09903784,93674.0,93652.0,0.14732088]
[1768328697557,0.19515784,93674.0,93653.0,0.06533886]
[1768328697753,0.19515784,93674.0,93661.0,0.010682]
[1768328697957,0.00016014,93673.0,93661.0,0.060682]
[1768328698361,0.00016014,93673.0,93661.0,0.010682]
[1768328698871,0.00016014,93673.0,93665.0,0.010681]
[1768328699766,0.00016014,93673.0,93653.0,0.0480864]
[1768328699967,0.00016014,93673.0,93661.0,0.010682]
[1768328700164,0.00016014,93673.0,93663.0,0.010681]
[1768328700364,0.09612,93679.0,93670.0,0.04566884]
[1768328700572,0.010679,93684.0,93670.0,0.04566884]
[1768328700766,0.09612,93683.0,93670.0,0.04566884]
[1768328700968,0.60944,93695.0,93670.0,0.04566884]
[1768328700969,0.19750659,93699.0,93672.0,0.09349813]
[1768328701174,0.19750659,93699.0,93656.0,0.010682]
[1768328701175,0.09612,93698.0,93676.0,0.09349813]
[1768328701366,0.09612,93698.0,93678.0,0.01068]
[1768328701561,0.09612,93697.0,93678.0,0.06016014]
[1768328701767,0.09612,93697.0,93682.0,0.010679]
[1768328701968,0.09612,93697.0,93679.0,0.01068]
[1768328702778,0.09628014,93697.0,93679.0,0.01068]
[1768328703481,0.10695814,93697.0,93678.0,0.00016014]
[1768328704178,0.01083814,93697.0,93678.0,0.00016014]
[1768328704476,0.10695814,93697.0,93678.0,0.00016014]
[1768328704676,0.10695814,93697.0,93678.0,0.01084014]
[1768328705177,0.01083814,93697.0,93678.0,0.01084014]
[1768328705475,0.10695814,93697.0,93678.0,0.01084014]
[1768328705776,0.010678,93692.0,93678.0,0.00016014]
[1768328705973,0.010679,93681.0,93678.0,1.4e-07]
[1768328706276,0.10199026,93681.0,93678.0,1.4e-07]
[1768328707179,0.09131126,93680.0,93656.0,0.18674402]
[1768328707478,0.010679,93684.0,93657.0,0.09062402]
[1768328707674,0.010679,93684.0,93658.0,0.09062402]
[1768328707868,0.010679,93684.0,93666.0,0.010681]
[1768328708179,0.010679,93684.0,93666.0,0.060681]
[1768328708483,0.01083914,93684.0,93666.0,0.060681]
[1768328709070,0.01083914,93684.0,93666.0,0.05]
[1768328709367,0.01083914,93684.0,93668.0,0.010681]
[1768328710176,0.01083914,93684.0,93665.0,0.010681]
[1768328710377,0.01083914,93684.0,93665.0,0.070681]
[1768328710773,0.010679,93682.0,93665.0,0.070681]
[1768328711982,0.10199026,93682.0,93665.0,0.070681]
[1768328712276,0.010679,93682.0,93665.0,0.070681]
[1768328712771,0.010679,93682.0,93667.0,0.010681]
[1768328713170,0.01068,93680.0,93658.0,0.09062402]
[1768328713381,0.0914714,93684.0,93664.0,0.010681]
[1768328713382,0.010679,93683.0,93664.0,0.010681]
[1768328713581,0.010679,93681.0,93664.0,0.070681]
[1768328713776,0.01068,93675.0,93664.0,0.06]
[1768328714774,0.010681,93666.0,93653.0,0.00533886]
[1768328714973,0.010681,93666.0,93653.0,0.05533886]
[1768328715283,0.09131126,93660.0,93653.0,0.05]
[1768328715485,0.10199326,93657.0,93633.0,0.09596402]
[1768328715785,0.10199326,93657.0,93633.0,0.14596402]
[1768328715978,0.09131126,93657.0,93642.0,0.010684]
[1768328716168,0.00016014,93654.0,93646.0,0.010683]
[1768328716369,0.00016014,93654.0,93646.0,0.060683]
[1768328716582,0.00016014,93654.0,93646.0,0.05]
[1768328716790,0.00016014,93654.0,93637.0,0.010684]
[1768328717079,0.00016014,93654.0,93633.0,0.00534]
[1768328717080,0.09990535,93645.0,93633.0,0.00534]
[1768328717282,0.19322389,93643.0,93625.0,0.010686]
[1768328717473,0.09990535,93641.0,93625.0,0.050686]
[1768328717669,0.09990535,93640.0,93625.0,0.050686]
[1768328717875,0.09990535,93630.0,93625.0,0.04]
[1768328718085,0.09990535,93630.0,93625.0,0.01978544]
[1768328718287,0.09990535,93630.0,93617.0,0.00012374]
[1768328718484,0.09990535,93630.0,93617.0,0.06012374]
[1768328718998,0.09331854,93629.0,93617.0,0.06]
[1768328719182,0.09331854,93629.0,93559.0,0.010693]
[1768328719183,0.09990535,93618.0,93597.0,0.09616]
[1768328719382,0.09331854,93620.0,93597.0,0.15616]
[1768328719383,0.11059235,93617.0,93597.0,0.15616]
[1768328719588,0.09990535,93616.0,93597.0,0.15616]
[1768328719886,0.106846,93621.0,93597.0,0.15616]
[1768328719887,0.09990535,93613.0,93597.0,0.06]
[1768328720183,0.09331854,93614.0,93598.0,0.010689]
[1768328720184,0.10001291,93612.0,93598.0,0.010689]
[1768328720384,0.10001291,93612.0,93598.0,0.070689]
[1768328720685,0.09990535,93611.0,93598.0,0.06]
[1768328720883,0.00010756,93612.0,93605.0,0.010688]
[1768328721084,5.6e-07,93612.0,93608.0,0.010688]
[1768328721584,0.09990535,93626.0,93608.0,0.010688]
[1768328721585,0.09990535,93626.0,93613.0,0.010687]
[1768328721774,0.19606535,93626.0,93613.0,0.05]
[1768328721979,0.19606535,93626.0,93612.0,0.010687]
[1768328722182,0.19606535,93626.0,93608.0,0.010688]
[1768328722382,0.19606535,93626.0,93611.0,0.010687]
[1768328722578,0.09990535,93626.0,93614.0,0.010687]
[1768328722784,0.09616,93628.0,93610.0,0.010687]
[1768328723384,0.09990535,93633.0,93615.0,0.010687]
[1768328723585,0.09990535,93631.0,93612.0,0.010687]
[1768328724492,0.09990535,93631.0,93601.0,0.09417498]
[1768328724493,0.09616,93630.0,93617.0,0.010687]
[1768328724693,0.09616,93629.0,93620.0,0.010686]
[1768328724889,0.09616,93629.0,93610.0,0.09386098]
[1768328725094,2.3e-07,93631.0,93625.0,0.010686]
[1768328725290,0.09990535,93642.0,93625.0,0.060686]
[1768328725497,0.09990535,93642.0,93627.0,0.010685]
[1768328726594,0.09616,93642.0,93627.0,0.010685]
[1768328726790,0.09990535,93647.0,93627.0,0.010685]
[1768328726995,0.09616,93646.0,93627.0,0.010685]
[1768328727185,0.09990535,93645.0,93627.0,0.010685]
[1768328728684,0.09990535,93645.0,93631.0,0.010685]
[1768328728888,0.19610535,93645.0,93631.0,0.010685]
[1768328729289,0.09990535,93645.0,93631.0,0.010685]
[1768328729488,0.09990535,93645.0,93631.0,0.070685]
[1768328729694,0.0962,93651.0,93637.0,0.010684]
[1768328729892,0.0962,93651.0,93637.0,0.070684]
[1768328730085,0.0962,93651.0,93634.0,0.010685]
[1768328731095,0.0962,93651.0,93638.0,0.010684]
[1768328731397,0.09331854,93658.0,93638.0,0.06]
[1768328731590,0.09990535,93666.0,93652.0,0.010683]
[1768328731788,0.09990535,93666.0,93652.0,0.05]
[1768328731990,0.09990535,93666.0,93649.0,0.010683]
[1768328732190,0.09990535,93666.0,93650.0,0.00016023]
[1768328732386,0.010681,93663.0,93650.0,0.06016023]
[1768328732700,0.0962,93667.0,93641.0,0.010684]
[1768328732701,0.19322389,93661.0,93641.0,0.010684]
[1768328732901,0.09990535,93658.0,93643.0,0.010684]
[1768328733105,0.09990535,93658.0,93643.0,0.070684]
[1768328733696,0.09990535,93658.0,93645.0,0.010683]
[1768328733903,0.09990535,93658.0,93645.0,0.060683]
[1768328734694,0.09990535,93658.0,93647.0,0.010683]
[1768328734895,0.09990535,93658.0,93647.0,0.070683]
[1768328735402,0.09990535,93658.0,93647.0,0.06]
[1768328736090,0.09990535,93658.0,93647.0,0.070683]
[1768328736292,0.00533886,93653.0,93647.0,0.070683]
[1768328737705,0.00533886,93653.0,93647.0,0.06]
[1768328739005,0.00533886,93653.0,93646.0,0.010683]
[1768328739206,0.00533886,93653.0,93646.0,0.070683]
[1768328740300,0.00533886,93653.0,93646.0,0.039683]
[1768328740901,0.09331854,93664.0,93646.0,0.039683]
[1768328741101,0.09616,93667.0,93653.0,0.010682]
[1768328741302,0.010681,93669.0,93653.0,0.010682]
[1768328741605,0.19330832,93669.0,93655.0,0.010682]
[1768328741907,0.09714832,93668.0,93655.0,0.010682]
[1768328742510,0.18953456,93668.0,93652.0,0.010683]
[1768328742700,0.09714832,93667.0,93654.0,0.010682]
[1768328744307,0.09714832,93667.0,93642.0,0.00016023]
[1768328744308,0.10782932,93667.0,93651.0,0.010683]
[1768328744513,0.09714832,93664.0,93645.0,0.09616]
[1768328744702,0.09714832,93664.0,93645.0,0.15616]
[1768328745504,0.09714832,93664.0,93652.0,0.010683]
[1768328746100,0.18953456,93664.0,93652.0,0.010683]
[1768328746314,0.09714832,93660.0,93648.0,0.010683]
[1768328746612,0.09714832,93660.0,93650.0,0.010683]
[1768328746909,0.09714832,93660.0,93652.0,0.010683]
[1768328747715,0.09714832,93660.0,93649.0,0.010683]
[1768328747907,0.09714832,93657.0,93645.0,0.09616]
[1768328748107,0.09714832,93657.0,93645.0,0.15616]
[1768328748304,0.09616,93669.0,93642.0,0.00016023]
[1768328748305,0.18953456,93656.0,93642.0,0.00016023]
[1768328748502,0.00016023,93671.0,93612.0,0.010687]
[1768328748503,0.09714832,93642.0,93631.0,0.09616]
[1768328748717,0.09714832,93641.0,93631.0,0.06]
[1768328748916,0.09714832,93632.0,93616.0,0.09616]
[1768328749112,0.09714832,93630.0,93616.0,0.043]
[1768328749314,0.09714832,93629.0,93616.0,0.05]
[1768328749703,0.09714832,93629.0,93617.0,0.010687]
[1768328749909,0.09714832,93629.0,93617.0,0.070687]
[1768328750412,0.09714832,93629.0,93617.0,0.06]
[1768328751610,0.09714832,93628.0,93617.0,0.06]
[1768328751923,0.00016023,93632.0,93611.0,0.19292042]
[1768328751924,2.3e-07,93632.0,93611.0,0.19292042]
[1768328752223,0.09714832,93647.0,93631.0,0.010685]
[1768328752521,0.09714832,93647.0,93624.0,0.09862453]
[1768328752522,0.09714832,93647.0,93633.0,0.010685]
[1768328753124,0.09714832,93647.0,93630.0,0.010685]
[1768328753336,0.09714832,93654.0,93639.0,0.010684]
[1768328753621,0.09714832,93654.0,93636.0,0.010684]
[1768328754016,0.09714832,93654.0,93637.0,0.00016023]
[1768328754320,0.09714832,93654.0,93638.0,0.010684]
[1768328754522,0.10783032,93659.0,93640.0,0.010684]
[1768328754720,0.09714832,93657.0,93637.0,0.00016023]
[1768328754929,0.010677,93699.0,93637.0,0.00016023]
[1768328754930,0.09714832,93646.0,93637.0,0.07084423]
[1768328755315,0.09714832,93646.0,93637.0,0.06016023]
[1768328755522,0.09714832,93646.0,93637.0,0.00016023]
[1768328756937,0.09714832,93646.0,93632.0,0.08604523]
[1768328757132,0.09714832,93646.0,93632.0,0.14604523]
[1768328757339,0.09714832,93646.0,93634.0,0.010685]
[1768328757637,0.09714832,93646.0,93634.0,0.070685]
[1768328758526,0.09714832,93646.0,93637.0,0.010684]
[1768328758927,0.00016023,93651.0,93637.0,0.010684]
[1768328759435,0.09730855,93651.0,93632.0,0.08604523]
[1768328759635,0.09730855,93651.0,93632.0,0.14604523]
[1768328760337,0.09730855,93651.0,93635.0,0.010685]
[1768328760523,0.09730855,93651.0,93635.0,0.060685]
[1768328761126,0.10799155,93651.0,93635.0,0.05]
[1768328762823,0.00016023,93651.0,93635.0,0.05]
[1768328763734,0.00016023,93651.0,93640.0,0.010684]
[1768328763939,0.0962,93663.0,93641.0,0.09862453]
[1768328764238,0.010682,93661.0,93642.0,0.010684]
[1768328764437,0.10783032,93661.0,93644.0,0.010684]
[1768328764639,0.10783032,93659.0,93644.0,0.054684]
[1768328764835,0.09297843,93660.0,93644.0,0.054684]
[1768328765042,0.10281294,93654.0,93644.0,0.054684]
[1768328765732,0.09212994,93652.0,93636.0,0.010684]
[1768328765930,0.09212994,93652.0,93636.0,0.060684]
[1768328766126,0.09212994,93651.0,93636.0,0.060684]
[1768328766435,0.09212994,93649.0,93636.0,0.05]
[1768328767639,0.0962,93661.0,93643.0,0.010684]
[1768328767839,0.18832994,93662.0,93645.0,0.010683]
[1768328768141,0.09212994,93661.0,93645.0,0.02]
[1768328768341,0.09297843,93655.0,93645.0,0.02]
[1768328768545,0.18510837,93654.0,93639.0,0.010684]
[1768328768727,0.09212994,93653.0,93641.0,0.010684]
[1768328768932,0.09212994,93653.0,93641.0,0.060684]
[1768328769335,0.09212994,93662.0,93641.0,0.05]
[1768328769935,0.09212994,93657.0,93644.0,0.010684]
[1768328770129,0.09212994,93657.0,93644.0,0.070684]
[1768328770840,0.09297843,93654.0,93644.0,0.06]
[1768328771043,0.09212994,93653.0,93644.0,0.06]
[1768328771244,0.10281194,93659.0,93644.0,0.06]
[1768328772047,0.09212994,93659.0,93645.0,0.010683]
[1768328772247,0.09212994,93659.0,93645.0,0.020683]
[1768328772741,0.09212994,93659.0,93645.0,0.01]
[1768328773041,0.09212994,93659.0,93646.0,0.010683]
[1768328773236,0.09212994,93659.0,93645.0,0.010683]
[1768328773550,0.09212994,93659.0,93647.0,0.010683]
[1768328774440,0.09212994,93659.0,93637.0,0.09594645]
[1768328774441,0.09212994,93659.0,93649.0,0.010683]
[1768328774640,0.0962,93662.0,93651.0,0.010683]
[1768328774844,0.09212994,93666.0,93651.0,0.05]
[1768328775441,0.0962,93671.0,93651.0,0.05]
[1768328775442,0.09212994,93657.0,93651.0,0.03]
[1768328775647,0.09212994,93657.0,93642.0,0.106884]
[1768328775648,0.09212994,93654.0,93642.0,0.0962]
[1768328775843,0.09212994,93649.0,93642.0,0.06]
[1768328776042,0.09212994,93649.0,93636.0,0.010684]
[1768328776344,0.09212994,93649.0,93636.0,0.06]
[1768328776738,0.09212994,93649.0,93639.0,0.010684]
[1768328777050,0.00016023,93652.0,93639.0,0.06]
[1768328777243,0.09346909,93661.0,93640.0,0.09306981]
[1768328777439,0.09346909,93656.0,93640.0,0.06]
[1768328778349,0.09616,93660.0,93644.0,0.010684]
[1768328778541,0.09616,93660.0,93644.0,0.070684]
[1768328779444,0.00442469,97986.0,93644.0,0.070684]
[1768328779651,0.09346909,93661.0,93644.0,0.06]
[1768328779849,0.09346909,93661.0,93650.0,0.010683]
[1768328780843,0.09346909,93661.0,93640.0,0.010684]
[1768328781039,0.10159409,93668.0,93642.0,0.010684]
[1768328781347,0.09616,93674.0,93656.0,0.010682]
[1768328781551,0.01068,93673.0,93656.0,0.010682]
[1768328781747,0.010681,93668.0,93653.0,0.010683]
[1768328781956,0.010681,93668.0,93653.0,0.070683]
[1768328782355,0.010681,93668.0,93653.0,0.06]
[1768328782556,0.18438218,93673.0,93653.0,0.06]
[1768328782752,0.18438218,93672.0,93653.0,0.06]
[1768328784362,0.010681,93669.0,93654.0,0.010682]
[1768328784557,0.010681,93669.0,93654.0,0.070682]
[1768328785052,0.18438218,93671.0,93657.0,0.010682]
[1768328785358,0.09091309,93683.0,93662.0,0.010681]
[1768328785652,0.01068,93678.0,93662.0,0.06]
[1768328785857,0.01068,93678.0,93663.0,0.010681]
[1768328786058,0.01068,93678.0,93663.0,0.070681]
[1768328788660,0.01068,93678.0,93663.0,0.049681]
[1768328789049,0.010679,93681.0,93665.0,0.010681]
[1768328789446,0.01068,93679.0,93662.0,0.010682]
[1768328789753,0.01068,93679.0,93662.0,0.070682]
[1768328789959,0.01068,93677.0,93662.0,0.070682]
[1768328792457,0.010679,93680.0,93664.0,0.010681]
[1768328793262,0.01068,93679.0,93664.0,0.010681]
[1768328793760,0.01068,93680.0,93664.0,0.010681]
[1768328795060,0.01068,93680.0,93664.0,0.060681]
[1768328795947,0.01068,93678.0,93664.0,0.060681]
[1768328796256,0.01068,93678.0,93664.0,0.045681]
[1768328796659,0.01068,93678.0,93664.0,0.056362]
[1768328797061,0.01068,93678.0,93673.0,0.00533772]
[1768328797260,0.01068,93678.0,93664.0,0.010681]
[1768328797561,0.01068,93678.0,93664.0,0.060681]
[1768328800964,0.010679,93680.0,93664.0,0.05]
[1768328801265,0.01068,93679.0,93667.0,0.010681]
[1768328801465,0.01068,93679.0,93667.0,0.060681]
[1768328801962,0.09328983,93684.0,93667.0,0.05]
[1768328802162,0.29751465,93693.0,93672.0,0.09733934]
[1768328802359,0.09328983,93692.0,93673.0,0.01068]
[1768328802559,0.09616,93691.0,93673.0,0.07068]
[1768328802766,0.09328983,93692.0,93673.0,0.07068]
[1768328803068,0.09616,93691.0,93673.0,0.07068]
[1768328803268,0.19567465,93691.0,93673.0,0.06]
[1768328803470,0.010679,93683.0,93673.0,0.06]
[1768328803662,0.010678,93689.0,93674.0,0.01068]
[1768328803971,0.09616,93706.0,93695.0,0.010678]
[1768328804267,0.198,93719.0,93695.0,0.010678]
[1768328804268,0.09328983,93707.0,93695.0,0.05]
[1768328804564,0.09328983,93707.0,93695.0,0.046]
[1768328805258,0.09328983,93707.0,93692.0,2.2e-07]
[1768328805458,0.010678,93693.0,93692.0,2.2e-07]
[1768328805861,0.010677,93705.0,93692.0,2.2e-07]
[1768328806172,0.010678,93695.0,93692.0,2.2e-07]
[1768328807168,0.010678,93693.0,93684.0,0.18972338]
[1768328807469,0.010678,93693.0,93684.0,0.19972338]
[1768328808472,0.06783092,93706.0,93684.0,0.19972338]
[1768328808663,0.010677,93699.0,93685.0,0.09733934]
[1768328808864,0.010677,93699.0,93685.0,0.14733934]
[1768328809556,0.06783092,93706.0,93685.0,0.14733934]
[1768328809961,0.010677,93699.0,93685.0,0.14733934]
[1768328810165,0.010677,93699.0,93686.0,0.09733934]
[1768328810460,0.16006575,93710.0,93691.0,0.20040138]
[1768328810461,0.010677,93706.0,93691.0,0.20040138]
[1768328810663,0.09632014,93710.0,93691.0,0.25040138]
[1768328811664,0.010676,93707.0,93691.0,0.23972338]
[1768328811875,0.010677,93705.0,93691.0,0.23972338]
[1768328812374,0.010677,93705.0,93691.0,0.22172338]
[1768328812776,0.010677,93703.0,93691.0,0.22172338]
[1768328813174,0.00533658,93693.0,93691.0,0.22172338]
[1768328813376,0.010677,93701.0,93691.0,0.14238404]
[1768328814177,0.010677,93702.0,93691.0,0.14238404]
[1768328814476,0.010677,93705.0,93691.0,0.14238404]
[1768328814970,0.08094105,93702.0,93691.0,0.05]
[1768328815276,0.09328983,93707.0,93691.0,0.05]
[1768328815472,0.010677,93703.0,93691.0,0.05]
[1768328815977,0.09616,93718.0,93704.0,0.09733934]
[1768328816172,0.09616,93720.0,93704.0,0.14733934]
[1768328816672,0.09616,93720.0,93699.0,0.09733934]
[1768328816673,0.010676,93708.0,93699.0,0.09733934]
[1768328816876,0.010677,93706.0,93699.0,0.02]
[1768328817373,0.010676,93709.0,93699.0,0.02]
[1768328817575,0.010677,93705.0,93699.0,0.02]
[1768328818078,0.17405143,93718.0,93699.0,0.02]
[1768328818266,0.010676,93712.0,93699.0,0.02]
[1768328818669,0.010676,93715.0,93699.0,0.030677]
[1768328818867,0.09328983,93718.0,93699.0,0.02]
[1768328819072,0.010676,93708.0,93699.0,0.02]
[1768328819669,0.010677,93706.0,93699.0,0.02]
[1768328819980,0.010677,93706.0,93699.0,0.01]
[1768328820869,0.010677,93703.0,93699.0,0.01]
[1768328821179,0.010677,93703.0,93699.0,0.06]
[1768328821379,0.010677,93706.0,93699.0,0.06]
[1768328822678,0.010677,93706.0,93696.0,0.09238404]
[1768328822679,0.08252289,93704.0,93686.0,0.09612]
[1768328822873,0.27074685,93700.0,93686.0,0.05]
[1768328823075,0.17581272,93699.0,93686.0,0.02868342]